bitfinex/quotes_BTCUSD_20250623
["timestamp","ask_amount","ask_price","bid_price","bid_amount"]
[1750702471983,0.41299104,103100.0,103090.0,0.52414502]
[1750702472218,0.07299104,103100.0,103090.0,0.51444514]
[1750702472431,0.07299104,103100.0,103090.0,0.50474526]
[1750702472664,0.10399104,103100.0,103090.0,0.30304024]
[1750702473126,0.47559104,103100.0,103090.0,0.30304024]
[1750702473769,0.08559104,103100.0,103090.0,0.30304024]
[1750702473983,0.08559104,103100.0,103090.0,0.50674554]
[1750702474197,0.13559104,103100.0,103090.0,0.50674554]
[1750702474417,0.13559104,103100.0,103090.0,0.50674563]
[1750702474851,0.07299104,103100.0,103090.0,0.53584518]
[1750702475068,0.07299104,103100.0,103090.0,0.5164457]
[1750702475496,0.07299104,103100.0,103090.0,0.52614558]
[1750702475746,0.07299104,103100.0,103090.0,0.5455445]
[1750702476174,0.07299104,103100.0,103090.0,0.5358449]
[1750702476394,0.07299104,103100.0,103090.0,0.52614502]
[1750702476612,0.07299104,103100.0,103090.0,0.51644542]
[1750702476862,0.07299104,103100.0,103090.0,0.53584471]
[1750702477538,0.99080319,103120.0,103100.0,0.20368564]
[1750702477539,0.091761,103120.0,103100.0,0.20368564]
[1750702477758,0.6218436,103120.0,103110.0,0.18308]
[1750702478208,0.5592436,103120.0,103100.0,0.10029939]
[1750702478422,0.5923826,103110.0,103100.0,0.18308]
[1750702479088,0.0619,103100.0,103080.0,0.22357996]
[1750702479312,0.0619,103100.0,103090.0,0.28337939]
[1750702480921,0.0619,103100.0,103090.0,0.48038462]
[1750702481154,0.0619,103110.0,103090.0,0.53372556]
[1750702481375,0.0619,103110.0,103090.0,0.5240252]
[1750702481600,0.0619,103110.0,103090.0,0.5240253]
[1750702481818,0.0619,103110.0,103090.0,0.51632551]
[1750702482035,0.0619,103110.0,103090.0,0.5240253]
[1750702482254,0.0619,103110.0,103100.0,0.19398642]
[1750702482470,0.0314,103110.0,103100.0,0.29428581]
[1750702482694,0.062,103110.0,103100.0,0.10029939]
[1750702482911,0.9320826,103110.0,103100.0,0.10029939]
[1750702483416,0.9320826,103110.0,103100.0,0.001]
[1750702483417,0.8700826,103110.0,103100.0,0.001]
[1750702484062,0.9325826,103110.0,103100.0,0.001]
[1750702484550,0.97119539,103110.0,103100.0,0.001]
[1750702485000,0.44111279,103110.0,103100.0,0.001]
[1750702485213,0.0627,103100.0,103090.0,0.19400494]
[1750702485427,0.0627,103100.0,103090.0,0.10029939]
[1750702486486,0.0627,103100.0,103090.0,0.29430462]
[1750702486695,0.0627,103100.0,103090.0,0.10029939]
[1750702487128,0.3714,103090.0,103080.0,0.37744411]
[1750702487371,0.4032,103090.0,103080.0,0.18342085]
[1750702487599,0.9332826,103090.0,103080.0,0.18342085]
[1750702488046,0.9624526,103090.0,103080.0,0.18342085]
[1750702488337,0.9634526,103090.0,103080.0,0.18342085]
[1750702489622,0.9866243,103090.0,103080.0,0.18342085]
[1750702489831,0.9866243,103090.0,103080.0,0.00046085]
[1750702490488,0.4565417,103090.0,103080.0,0.00046085]
[1750702490710,0.4565417,103090.0,103080.0,0.10076024]
[1750702490956,0.4565417,103090.0,103080.0,0.29478429]
[1750702490957,0.0847417,103090.0,103080.0,0.29478429]
[1750702491182,0.0533417,103090.0,103080.0,0.31418641]
[1750702491396,0.001,103090.0,103080.0,0.34812862]
[1750702491610,0.001,103090.0,103080.0,0.33842808]
[1750702491820,0.001,103090.0,103080.0,0.11530109]
[1750702492030,0.001,103090.0,103080.0,0.29814109]
[1750702492261,0.0327,103090.0,103080.0,0.28360024]
[1750702492480,0.0646,103090.0,103080.0,0.10076024]
[1750702492695,0.5946826,103090.0,103080.0,0.28360024]
[1750702492903,0.9346826,103090.0,103080.0,0.28360024]
[1750702493112,0.95788007,103090.0,103080.0,0.28360024]
[1750702493559,0.95788007,103090.0,103080.0,0.18330085]
[1750702494612,1.05366808,103090.0,103080.0,0.00046085]
[1750702494836,0.95788007,103090.0,103080.0,0.00046085]
[1750702495095,0.4012,103080.0,103040.0,0.004]
[1750702495302,0.9312826,103050.0,103040.0,0.00413792]
[1750702495521,1.48456267,103050.0,103040.0,0.00413792]
[1750702495728,0.99309286,103050.0,103040.0,0.00413792]
[1750702495944,1.02227886,103050.0,103040.0,0.00413792]
[1750702496210,0.98366607,103050.0,103040.0,0.00413792]
[1750702497092,0.42258347,103050.0,103040.0,0.10443731]
[1750702498165,0.42558347,103050.0,103040.0,0.10443731]
[1750702498386,0.42858347,103050.0,103040.0,0.10443731]
[1750702499069,0.45598347,103050.0,103040.0,0.10443731]
[1750702499274,0.98606607,103050.0,103040.0,0.10443731]
[1750702499486,0.95688007,103050.0,103040.0,0.00413792]
[1750702499706,0.98606207,103050.0,103040.0,0.00413792]
[1750702501622,0.45597947,103050.0,103040.0,0.00413792]
[1750702502048,0.42557947,103050.0,103040.0,0.10443731]
[1750702502256,0.98656207,103050.0,103040.0,0.00413792]
[1750702502517,1.08686146,103050.0,103040.0,0.00413792]
[1750702502728,0.98656207,103050.0,103040.0,0.00413792]
[1750702502939,1.08686146,103050.0,103040.0,0.00413792]
[1750702503166,1.61694406,103050.0,103040.0,0.00413792]
[1750702503383,0.9018826,103020.0,103000.0,0.004]
[1750702503588,0.3718,103020.0,103010.0,0.10029939]
[1750702504033,0.4029,103020.0,103000.0,0.18685802]
[1750702504273,0.9329826,103020.0,103000.0,0.48133062]
[1750702504485,0.95609162,103020.0,103000.0,0.48133062]
[1750702504697,0.95609162,103020.0,103000.0,0.28715741]
[1750702504898,0.95609162,103020.0,103010.0,0.004]
[1750702505342,0.0617,103010.0,103000.0,0.10543741]
[1750702505576,0.5606826,103010.0,103000.0,0.30361216]
[1750702505801,0.3706,103020.0,103000.0,0.30261216]
[1750702506015,0.92378162,103020.0,103000.0,0.29843442]
[1750702506268,0.92378162,103020.0,103010.0,0.001]
[1750702506524,0.42479902,103020.0,103010.0,0.001]
[1750702506725,0.95488162,103020.0,103010.0,0.001]
[1750702507359,0.95488162,103020.0,103000.0,0.28693967]
[1750702507579,0.8700826,103010.0,103000.0,0.10425967]
[1750702507786,0.39369902,103010.0,103000.0,0.30143442]
[1750702507999,0.36309902,103010.0,103000.0,0.34510034]
[1750702508209,0.34,103010.0,103000.0,0.58784034]
[1750702508843,0.9347826,103030.0,103010.0,0.19415581]
[1750702509062,1.0372403,103030.0,103010.0,0.10029939]
[1750702509266,0.5071577,103030.0,103010.0,0.10029939]
[1750702509690,1.0372403,103030.0,103010.0,0.10029939]
[1750702510106,0.5071577,103030.0,103010.0,0.29445529]
[1750702510319,1.0372403,103030.0,103010.0,0.29445529]
[1750702510536,0.0936936,103030.0,103020.0,0.10029939]
[1750702510749,0.02308081,103030.0,103020.0,0.29443645]
[1750702510955,0.02308081,103030.0,103020.0,0.47703645]
[1750702511166,0.02308081,103030.0,103020.0,0.49644977]
[1750702511432,0.02308081,103030.0,103020.0,0.34780337]
[1750702511637,0.02308081,103030.0,103020.0,1.14722597]
[1750702511871,0.372,103050.0,103030.0,0.22805551]
[1750702512087,0.39507824,103050.0,103040.0,0.28289939]
[1750702512308,0.05507824,103050.0,103040.0,0.28289939]
[1750702512531,0.02307824,103050.0,103040.0,0.50124448]
[1750702512754,0.02307824,103050.0,103040.0,0.51094926]
[1750702512981,0.02307824,103050.0,103040.0,0.53035815]
[1750702513194,0.02307824,103050.0,103040.0,0.56125815]
[1750702513407,0.02307824,103050.0,103040.0,0.56139617]
[1750702513616,0.02307824,103050.0,103040.0,0.55169196]
[1750702513825,0.02307824,103050.0,103040.0,0.57110085]
[1750702514087,0.02307824,103050.0,103040.0,0.55169196]
[1750702514300,0.02307824,103050.0,103040.0,0.54120085]
[1750702514507,0.02307824,103050.0,103040.0,0.54120028]
[1750702514714,0.02307824,103050.0,103040.0,0.60430028]
[1750702514921,0.02307824,103050.0,103040.0,0.55269158]
[1750702515366,0.02307824,103050.0,103040.0,0.57210028]
[1750702515585,0.02307824,103050.0,103040.0,0.54120028]
[1750702515813,0.02307824,103050.0,103040.0,0.57310028]
[1750702517261,0.02307824,103050.0,103040.0,1.13338288]
[1750702517495,0.02307824,103050.0,103040.0,0.60330028]
[1750702518129,0.02307824,103050.0,103040.0,0.60230028]
[1750702518336,0.02307824,103050.0,103040.0,0.61030028]
[1750702518753,0.02307824,103050.0,103040.0,1.14038288]
[1750702519176,0.34,103070.0,103060.0,0.23771067]
[1750702519418,0.36313411,103070.0,103060.0,0.35312024]
[1750702519640,0.36313411,103070.0,103060.0,0.55688503]
[1750702519861,0.36313411,103070.0,103060.0,0.57629072]
[1750702520073,0.36313411,103070.0,103060.0,0.58599342]
[1750702520287,0.36313411,103070.0,103060.0,0.30890195]
[1750702520510,0.36313411,103070.0,103060.0,0.55688494]
[1750702520723,0.36313411,103070.0,103060.0,0.57629044]
[1750702520940,0.36313411,103070.0,103060.0,0.60769044]
[1750702521145,0.36313411,103070.0,103060.0,0.58599296]
[1750702521350,0.36313411,103070.0,103060.0,0.59569538]
[1750702521566,0.02313411,103070.0,103060.0,0.59569538]
[1750702521880,0.02313411,103070.0,103060.0,0.62899538]
[1750702522778,0.02313411,103070.0,103060.0,0.39071538]
[1750702522979,0.02313411,103070.0,103060.0,0.62895538]
[1750702523401,0.02313411,103070.0,103060.0,0.63395538]
[1750702523616,0.34,103080.0,103070.0,0.22798754]
[1750702523822,0.36314795,103080.0,103070.0,0.32828693]
[1750702524030,0.36314795,103080.0,103070.0,0.31858517]
[1750702524231,0.36314795,103080.0,103070.0,0.32828703]
[1750702524457,0.36314795,103080.0,103070.0,0.34769018]
[1750702524689,0.14407689,103100.0,103090.0,0.20370539]
[1750702524888,0.10252179,103100.0,103090.0,0.51056551]
[1750702525094,0.0231449,103100.0,103090.0,0.57610511]
[1750702525311,0.0231449,103100.0,103090.0,0.60880511]
[1750702525527,0.004,103110.0,103100.0,0.21822649]
[1750702525746,0.36712331,103110.0,103100.0,0.11484024]
[1750702525971,0.43188433,103110.0,103100.0,0.28257939]
[1750702526400,0.09188433,103110.0,103100.0,0.27857939]
[1750702526648,0.43188433,103110.0,103100.0,0.47256581]
[1750702526880,0.36758433,103110.0,103100.0,0.49680598]
[1750702527124,0.36958433,103110.0,103100.0,0.51620433]
[1750702527381,0.00646102,103110.0,103100.0,0.53560145]
[1750702527578,0.00646102,103110.0,103100.0,0.50650501]
[1750702527788,0.00646102,103110.0,103100.0,0.52590279]
[1750702528010,0.00746102,103110.0,103100.0,0.51620404]
[1750702528262,0.00746102,103110.0,103100.0,0.53560155]
[1750702528472,0.00746102,103110.0,103100.0,0.52590289]
[1750702528684,0.00746102,103110.0,103100.0,0.53560155]
[1750702528894,0.00746102,103110.0,103100.0,0.32422501]
[1750702529106,0.00546102,103110.0,103100.0,0.58166289]
[1750702529317,0.00546102,103110.0,103100.0,0.59136155]
[1750702529607,0.00446102,103110.0,103100.0,0.59136155]
[1750702529832,0.00446102,103110.0,103100.0,0.30482666]
[1750702530049,0.00446102,103110.0,103100.0,0.55356588]
[1750702530259,0.00446102,103110.0,103100.0,0.55316598]
[1750702530475,0.00446102,103110.0,103100.0,0.5628652]
[1750702530690,0.00446102,103110.0,103100.0,0.58226327]
[1750702531145,0.00446102,103110.0,103100.0,0.57256433]
[1750702531360,0.00446102,103110.0,103100.0,0.58226336]
[1750702531576,0.00446102,103110.0,103100.0,0.57256433]
[1750702531789,0.00446102,103110.0,103100.0,0.58226336]
[1750702532227,0.00446102,103110.0,103100.0,0.5628652]
[1750702532410,0.00446102,103110.0,103100.0,0.57256433]
[1750702532655,0.00446102,103110.0,103100.0,0.55316598]
[1750702532865,0.00446102,103110.0,103100.0,0.5628652]
[1750702533088,0.00446102,103110.0,103100.0,0.5627452]
[1750702533310,0.00446102,103110.0,103100.0,0.57244423]
[1750702533537,0.00446102,103110.0,103100.0,0.58214317]
[1750702533757,0.00446102,103110.0,103100.0,0.29128581]
[1750702533972,0.00446102,103110.0,103100.0,0.53850513]
[1750702534190,0.00446102,103110.0,103100.0,0.52880581]
[1750702534399,0.00446102,103110.0,103100.0,0.57244348]
[1750702534877,0.00446102,103110.0,103100.0,1.13352608]
[1750702535128,0.00446102,103110.0,103100.0,1.16442608]
[1750702535372,0.00446102,103110.0,103100.0,0.63434348]
[1750702536904,0.00446102,103110.0,103100.0,0.60336348]
[1750702537108,0.00446102,103110.0,103100.0,0.57236348]
[1750702537838,0.00446102,103110.0,103100.0,0.60336348]
[1750702538255,0.00446102,103110.0,103100.0,0.63426348]
[1750702538476,0.00446102,103110.0,103100.0,0.60336348]
[1750702538925,0.00446102,103110.0,103100.0,0.57228348]
[1750702539137,0.00446102,103110.0,103100.0,0.33492348]
[1750702539353,0.00446102,103110.0,103100.0,0.57228348]
[1750702539567,0.00446102,103110.0,103100.0,0.60328348]
[1750702539792,0.00446102,103110.0,103100.0,0.63418348]
[1750702540667,0.00446102,103110.0,103100.0,1.16426608]
[1750702541141,0.00446102,103110.0,103100.0,1.44730608]
[1750702541582,0.00446102,103110.0,103100.0,1.78730608]
[1750702541806,0.0001,103120.0,103110.0,0.28760245]
[1750702542026,0.0001,103120.0,103110.0,0.98002246]
[1750702542252,0.0001,103120.0,103110.0,1.03002246]
[1750702542697,0.63961821,103170.0,103160.0,0.21810811]
[1750702542911,0.63961821,103170.0,103160.0,0.49055383]
[1750702542912,1.00269961,103170.0,103160.0,0.49055383]
[1750702543791,1.00269961,103170.0,103160.0,0.29668024]
[1750702544008,1.00269961,103170.0,103160.0,0.29681826]
[1750702544220,0.47461701,103170.0,103160.0,0.49069185]
[1750702544440,1.00334532,103170.0,103160.0,0.52946523]
[1750702544655,0.0250814,103170.0,103160.0,0.52938523]
[1750702544919,0.63454089,103170.0,103160.0,0.29673826]
[1750702545139,0.63554089,103170.0,103160.0,0.29673826]
[1750702545356,0.66434532,103170.0,103160.0,0.29673826]
[1750702545804,1.06694532,103170.0,103160.0,0.10043741]
[1750702546014,1.76305486,103170.0,103160.0,0.00013802]
[1750702546231,0.0656,103150.0,103110.0,0.19396595]
[1750702546440,0.55892898,103130.0,103120.0,0.33749939]
[1750702546661,0.05192778,103130.0,103120.0,0.55084276]
[1750702546877,0.0230814,103130.0,103120.0,0.56053963]
[1750702547091,0.0230814,103130.0,103120.0,0.33303641]
[1750702547304,0.0230814,103130.0,103120.0,0.61543726]
[1750702547512,0.0230814,103130.0,103120.0,0.64673726]
[1750702547724,0.02321964,103130.0,103120.0,0.64673726]
[1750702548583,0.02323886,103130.0,103120.0,0.64673726]
[1750702548813,0.02323886,103130.0,103120.0,0.65073726]
[1750702549048,0.00013824,103130.0,103120.0,1.18281986]
[1750702549265,0.00013824,103130.0,103120.0,0.62143726]
[1750702549476,0.00013824,103130.0,103120.0,1.17981986]
[1750702549693,0.00013824,103130.0,103120.0,0.64573726]
[1750702549938,0.02777189,103150.0,103140.0,0.22299672]
[1750702550159,0.37846185,103160.0,103150.0,0.21328132]
[1750702550160,0.23735721,103160.0,103150.0,0.21328132]
[1750702550394,0.5609826,103160.0,103150.0,0.30873262]
[1750702550601,0.5609826,103160.0,103150.0,0.32812175]
[1750702550814,0.5609826,103160.0,103150.0,0.33781599]
[1750702551027,0.5609826,103160.0,103150.0,0.33781608]
[1750702551238,0.5609826,103160.0,103150.0,0.31842723]
[1750702551448,0.5609826,103160.0,103150.0,0.11484024]
[1750702551665,0.5910826,103160.0,103150.0,0.11484024]
[1750702551878,0.062,103160.0,103150.0,0.11484024]
[1750702552087,0.5920826,103160.0,103150.0,0.11484024]
[1750702552291,0.5920826,103160.0,103150.0,0.31842714]
[1750702552542,0.5920826,103160.0,103150.0,0.30873262]
[1750702553190,0.5920826,103160.0,103150.0,0.32812175]
[1750702553669,0.5920826,103160.0,103150.0,0.11484024]
[1750702553890,0.062,103160.0,103150.0,0.11484024]
[1750702554130,0.5920826,103160.0,103150.0,0.32812147]
[1750702554326,0.0319,103160.0,103150.0,0.33781571]
[1750702554550,0.5619826,103160.0,103150.0,0.33781571]
[1750702554767,0.001,103160.0,103150.0,0.40294967]
[1750702555001,0.001,103160.0,103150.0,0.34750967]
[1750702555224,0.001,103160.0,103150.0,0.56512138]
[1750702555437,0.0314,103160.0,103150.0,0.57481552]
[1750702555852,0.0314,103160.0,103150.0,0.59420353]
[1750702556215,0.0314,103160.0,103150.0,0.58450957]
[1750702556411,0.0314,103160.0,103150.0,0.55542714]
[1750702556624,0.65177537,103160.0,103150.0,0.10029939]
[1750702556824,0.65177537,103160.0,103150.0,0.28181939]
[1750702557611,0.65177537,103160.0,103150.0,0.47571177]
[1750702557612,0.12169277,103160.0,103150.0,0.47571177]
[1750702557811,0.12169277,103160.0,103150.0,0.51933534]
[1750702557812,0.001,103160.0,103150.0,0.51933534]
[1750702558026,0.001,103160.0,103150.0,0.33781534]
[1750702558222,0.001,103160.0,103150.0,0.55213534]
[1750702558463,0.001,103160.0,103150.0,0.51933534]
[1750702558882,0.001,103160.0,103150.0,0.50964138]
[1750702559066,0.001,103160.0,103150.0,0.57473534]
[1750702559191,0.5940826,103170.0,103150.0,0.55534714]
[1750702559391,0.5929826,103160.0,103150.0,0.48936638]
[1750702559639,0.5929826,103160.0,103150.0,0.28577939]
[1750702560319,0.65067537,103160.0,103150.0,0.28877939]
[1750702560517,0.65067537,103160.0,103150.0,0.10729939]
[1750702560518,0.5929826,103160.0,103150.0,0.10729939]
[1750702560718,0.5929826,103160.0,103150.0,0.28877939]
[1750702560930,0.5929826,103160.0,103150.0,2.70013239]
[1750702561344,0.67025552,103160.0,103150.0,2.70013239]
[1750702561547,0.67025552,103160.0,103150.0,2.89102477]
[1750702561781,0.65086579,103160.0,103150.0,2.63590298]
[1750702562175,0.67402097,103160.0,103150.0,2.63690298]
[1750702562389,1.54410357,103160.0,103150.0,2.413353]
[1750702562597,7.03908997,103160.0,103150.0,1.72580563]
[1750702562806,7.29780289,103160.0,103150.0,1.62666073]
[1750702563023,7.29780289,103160.0,103150.0,1.59236073]
[1750702563431,5.74553769,103160.0,103150.0,1.52886073]
[1750702563634,6.74112997,103160.0,103150.0,0.66356073]
[1750702563879,0.8321,103150.0,103090.0,0.26552]
[1750702564070,0.5300826,103110.0,103100.0,0.10029939]
[1750702564199,0.55323778,103110.0,103100.0,0.28169939]
[1750702564405,0.02315518,103110.0,103100.0,0.55898426]
[1750702564607,0.02315518,103110.0,103100.0,0.59292271]
[1750702565073,0.02315518,103110.0,103100.0,0.94160531]
[1750702565291,0.02315518,103110.0,103100.0,0.64818095]
[1750702565834,0.02315518,103110.0,103100.0,1.17826355]
[1750702566044,0.02315518,103110.0,103100.0,1.18426355]
[1750702566263,0.02315518,103110.0,103100.0,0.65418095]
[1750702566482,0.5300826,103150.0,103120.0,0.28572766]
[1750702566694,0.8700826,103140.0,103130.0,0.28169939]
[1750702566902,0.89324966,103140.0,103130.0,0.28169939]
[1750702567112,0.36316706,103140.0,103130.0,0.28169939]
[1750702567334,0.02316706,103140.0,103130.0,0.56476663]
[1750702567544,0.02316706,103140.0,103130.0,0.55507023]
[1750702567726,0.02316706,103140.0,103130.0,0.37083673]
[1750702567981,0.02316706,103140.0,103130.0,0.36114024]
[1750702568185,0.02416706,103140.0,103130.0,0.36114024]
[1750702568397,0.02416706,103140.0,103130.0,0.56476654]
[1750702568608,0.02416706,103140.0,103130.0,0.56476663]
[1750702568818,0.02416706,103140.0,103130.0,0.55507023]
[1750702569437,0.02416706,103140.0,103130.0,0.56476672]
[1750702569639,0.02416706,103140.0,103130.0,0.55507023]
[1750702570259,0.02416706,103140.0,103130.0,0.58415859]
[1750702570470,0.02416706,103140.0,103130.0,0.36114024]
[1750702570699,0.02416706,103140.0,103130.0,0.32854024]
[1750702571139,0.63362655,103140.0,103130.0,0.10029939]
[1750702571363,0.63362655,103140.0,103130.0,0.28165939]
[1750702571585,0.10354395,103140.0,103130.0,0.28165939]
[1750702572242,0.02416706,103140.0,103130.0,0.28165939]
[1750702572714,0.02416706,103140.0,103130.0,0.29620024]
[1750702572923,0.02416706,103140.0,103130.0,0.55443023]
[1750702573401,0.02416706,103140.0,103130.0,0.56412672]
[1750702573612,0.02417508,103140.0,103130.0,0.55443023]
[1750702574040,0.02317508,103140.0,103130.0,0.55443023]
[1750702574259,0.02317508,103140.0,103130.0,0.55543023]
[1750702574476,0.02317508,103140.0,103130.0,0.55743023]
[1750702575148,0.029151,103160.0,103140.0,0.213302]
[1750702575359,0.02317493,103160.0,103150.0,0.34577939]
[1750702575579,0.02317493,103160.0,103150.0,0.53967177]
[1750702575806,0.34,103150.0,103130.0,0.003]
[1750702576015,0.8700826,103140.0,103130.0,0.003]
[1750702576240,0.36317493,103140.0,103130.0,0.18228]
[1750702576475,0.36317493,103140.0,103130.0,0.24648]
[1750702576687,0.36317493,103140.0,103130.0,0.21368]
[1750702576932,0.89325753,103140.0,103130.0,0.18228]
[1750702577136,0.37307493,103140.0,103130.0,0.18224]
[1750702577342,0.90315753,103140.0,103130.0,0.18224]
[1750702577562,0.90315753,103140.0,103130.0,0.18424]
[1750702577792,0.90315753,103140.0,103130.0,0.18324]
[1750702578005,0.90315753,103140.0,103130.0,0.003]
[1750702578445,0.92241553,103140.0,103130.0,0.003]
[1750702579555,0.8992406,103140.0,103130.0,0.003]
[1750702579772,0.34,103140.0,103130.0,0.003]
[1750702579985,0.8700826,103140.0,103130.0,0.003]
[1750702583472,0.89791195,103140.0,103130.0,0.003]
[1750702583759,1.00346377,103140.0,103130.0,0.003]
[1750702583968,1.71470637,103140.0,103130.0,0.003]
[1750702584209,6.59992337,103140.0,103130.0,0.003]
[1750702584459,6.06984077,103140.0,103130.0,0.002]
[1750702584700,6.17314016,103140.0,103130.0,0.002]
[1750702584939,1.18462377,103140.0,103130.0,0.002]
[1750702585203,0.0099,103130.0,103100.0,0.0632]
[1750702585466,0.5300826,103110.0,103100.0,0.24449824]
[1750702585693,0.8700826,103120.0,103100.0,0.24449824]
[1750702586134,0.34,103120.0,103100.0,0.06333824]
[1750702586353,0.8700826,103120.0,103100.0,0.06333824]
[1750702586754,0.8700826,103120.0,103100.0,0.06733824]
[1750702587032,0.8700826,103120.0,103100.0,0.16363763]
[1750702587253,0.8700826,103120.0,103100.0,0.16463763]
[1750702587472,0.8700826,103120.0,103100.0,0.16663763]
[1750702588158,0.029163,103130.0,103100.0,0.3168203]
[1750702588424,0.8700826,103140.0,103120.0,0.0639]
[1750702588667,0.34,103140.0,103120.0,0.3581476]
[1750702588902,0.34,103140.0,103130.0,0.37007023]
[1750702588903,0.029156,103140.0,103130.0,0.37007023]
[1750702589125,0.5301826,103170.0,103150.0,0.0613]
[1750702589352,0.02925,103170.0,103160.0,0.19387359]
[1750702589583,0.02925,103170.0,103160.0,0.25517359]
[1750702589804,0.0001,103170.0,103160.0,0.16159939]
[1750702590245,0.0001,103170.0,103160.0,0.16059939]
[1750702590455,0.53032074,103170.0,103160.0,0.16059939]
[1750702590940,0.53132074,103170.0,103160.0,0.16059939]
[1750702591159,0.53132074,103170.0,103160.0,0.0603]
[1750702591586,0.00123814,103170.0,103160.0,0.0603]
[1750702592026,0.53132074,103170.0,103160.0,0.0603]
[1750702592462,0.00123814,103170.0,103160.0,0.35447298]
[1750702593633,0.00023814,103170.0,103160.0,0.36416665]
[1750702593887,0.00023814,103170.0,103160.0,0.38355353]
[1750702594103,0.00223814,103170.0,103160.0,0.4077874]
[1750702594345,0.00123814,103170.0,103160.0,0.5888674]
[1750702594645,0.00223814,103170.0,103160.0,0.5888674]
[1750702595338,0.00123814,103170.0,103160.0,0.5888674]
[1750702595555,0.00123814,103170.0,103160.0,0.57917438]
[1750702595792,0.00223814,103170.0,103160.0,0.56948108]
[1750702596014,0.00223814,103170.0,103160.0,0.5888674]
[1750702596224,0.00023814,103170.0,103160.0,0.5888674]
[1750702596650,0.00023814,103170.0,103160.0,0.5928674]
[1750702596871,0.00023814,103170.0,103160.0,0.5948674]
[1750702597290,0.00023814,103170.0,103160.0,1.12495]
[1750702597500,0.00408279,103190.0,103180.0,0.28146856]
[1750702597709,0.00408279,103190.0,103180.0,0.63699069]
[1750702597930,0.00408279,103190.0,103180.0,0.62729946]
[1750702598195,0.00408279,103190.0,103180.0,0.63699088]
[1750702598507,0.00408279,103190.0,103180.0,0.63699089]
[1750702599104,0.00408279,103190.0,103180.0,0.64668203]
[1750702599789,0.00508279,103190.0,103180.0,0.64668203]
[1750702600713,0.00508279,103190.0,103180.0,0.64664203]
[1750702600940,0.00508279,103190.0,103180.0,0.42373194]
[1750702601156,0.00508279,103190.0,103180.0,0.63695107]
[1750702601375,0.00499434,103190.0,103180.0,0.63695098]
[1750702601580,0.00499434,103190.0,103180.0,0.60787625]
[1750702602212,0.00499434,103190.0,103180.0,0.39949939]
[1750702602409,0.00499434,103190.0,103180.0,0.39945939]
[1750702603040,0.00499434,103190.0,103180.0,0.16369939]
[1750702603250,0.00499434,103190.0,103180.0,0.34465939]
[1750702603450,0.00499434,103190.0,103180.0,0.34335939]
[1750702603680,0.53507694,103190.0,103180.0,0.18096]
[1750702604301,0.53507694,103190.0,103180.0,0.18067165]
[1750702604953,0.00499434,103190.0,103180.0,0.38419927]
[1750702605159,0.00499434,103190.0,103180.0,0.51499885]
[1750702605368,0.00499434,103190.0,103180.0,0.53438206]
[1750702605799,0.00499434,103190.0,103180.0,0.50530705]
[1750702606023,0.00399434,103190.0,103180.0,0.50530705]
[1750702606220,0.00399434,103190.0,103180.0,0.54992216]
[1750702606476,0.00399434,103190.0,103180.0,0.58132216]
[1750702606947,0.00399434,103190.0,103180.0,0.58132225]
[1750702607171,0.00399434,103190.0,103180.0,0.5522479]
[1750702607404,0.00399434,103190.0,103180.0,0.53770705]
[1750702607852,0.35125433,103200.0,103180.0,0.53770705]
[1750702608065,0.35125433,103200.0,103180.0,0.3570354]
[1750702608282,0.35125433,103200.0,103190.0,0.18092]
[1750702608508,0.5300826,103200.0,103190.0,0.18092]
[1750702608736,0.3401,103210.0,103190.0,0.18092]
[1750702608965,0.5300826,103200.0,103180.0,0.001]
[1750702609188,0.5300826,103200.0,103170.0,0.00980595]
[1750702609189,0.8700826,103190.0,103170.0,0.00980595]
[1750702609403,0.5300826,103180.0,103170.0,0.19068595]
[1750702609623,0.8700826,103190.0,103170.0,0.19068595]
[1750702610521,0.8700826,103190.0,103170.0,0.19168595]
[1750702610970,0.5300826,103190.0,103170.0,0.19168595]
[1750702611267,0.34,103180.0,103170.0,0.19168595]
[1750702611484,0.8700826,103180.0,103170.0,0.19168595]
[1750702611706,0.8700826,103180.0,103170.0,0.01080595]
[1750702612142,0.8700826,103180.0,103170.0,0.01180595]
[1750702612367,0.8700826,103180.0,103170.0,0.01080595]
[1750702612592,0.8700826,103180.0,103170.0,0.01380595]
[1750702613455,0.96929086,103180.0,103170.0,0.01380595]
[1750702613720,0.8700826,103190.0,103170.0,0.01380595]
[1750702614164,0.34,103190.0,103170.0,0.33905876]
[1750702614383,0.34,103190.0,103180.0,0.0632]
[1750702614618,0.34,103180.0,103170.0,0.17220534]
[1750702614804,0.8700826,103180.0,103170.0,0.04050595]
[1750702615049,0.8700826,103180.0,103170.0,0.04150595]
[1750702615273,0.34,103180.0,103170.0,0.04050595]
[1750702615487,0.34,103180.0,103170.0,0.26656075]
[1750702615710,0.34,103180.0,103170.0,0.07270595]
[1750702616151,0.34,103180.0,103170.0,0.07470595]
[1750702617754,0.34,103180.0,103170.0,0.26856075]
[1750702617973,0.028824,103200.0,103180.0,0.0617]
[1750702618192,0.90231669,103200.0,103180.0,0.34283939]
[1750702618416,0.8932515,103200.0,103180.0,0.24254]
[1750702618634,0.37223412,103200.0,103180.0,0.24254]
[1750702618857,0.90231672,103200.0,103180.0,0.24254]
[1750702619078,0.37223412,103200.0,103190.0,0.0617]
[1750702619304,0.37523412,103200.0,103190.0,0.24254]
[1750702619534,0.37823412,103200.0,103190.0,0.24254]
[1750702620227,0.37823412,103200.0,103190.0,0.23164623]
[1750702620449,0.3691689,103200.0,103190.0,0.33194562]
[1750702620671,0.3661689,103200.0,103190.0,0.35194562]
[1750702621382,0.0261689,103200.0,103190.0,0.54576285]
[1750702621625,0.02937811,103210.0,103200.0,0.0324]
[1750702621626,0.00023811,103210.0,103200.0,0.0324]
[1750702621862,0.03250849,103210.0,103200.0,0.32449783]
[1750702622088,0.00930403,103210.0,103200.0,0.32249783]
[1750702622330,0.00930403,103210.0,103200.0,0.33218775]
[1750702622776,0.00930403,103210.0,103200.0,0.34187757]
[1750702622993,0.01230403,103210.0,103200.0,0.35156721]
[1750702623214,0.00023811,103210.0,103200.0,0.44803656]
[1750702623650,0.00023811,103210.0,103200.0,0.41027783]
[1750702623909,0.00023811,103210.0,103200.0,0.43934711]
[1750702624350,0.00023811,103210.0,103200.0,0.44903646]
[1750702624555,0.00023811,103210.0,103200.0,0.44234711]
[1750702624975,0.00023811,103210.0,103200.0,0.45203656]
[1750702625420,0.00023811,103210.0,103200.0,0.43265757]
[1750702625647,0.00023811,103210.0,103200.0,0.42296775]
[1750702625875,0.00023811,103210.0,103200.0,0.41327783]
[1750702626121,0.00023811,103210.0,103200.0,0.42296775]
[1750702626340,0.00023811,103210.0,103200.0,0.43265757]
[1750702626576,0.00023811,103210.0,103200.0,0.42296775]
[1750702627005,0.00023811,103210.0,103200.0,0.41327783]
[1750702627453,0.00023811,103210.0,103200.0,0.16479939]
[1750702627667,0.00023811,103210.0,103200.0,0.34555939]